bitfinex/quotes_BTCUSD_20251215
["timestamp","ask_amount","ask_price","bid_price","bid_amount"]
[1765809616017,0.0022,89618.0,89617.0,0.21280982]
[1765809616480,0.0022,89618.0,89617.0,0.10156979]
[1765809617525,0.02466408,89618.0,89617.0,0.00111439]
[1765809617756,0.10880401,89618.0,89617.0,0.00111439]
[1765809617970,0.12676401,89618.0,89617.0,0.00111439]
[1765809618784,0.12476401,89618.0,89617.0,0.00111439]
[1765809619036,0.12476401,89618.0,89572.0,0.0033]
[1765809619037,0.01116333,89579.0,89572.0,0.0033]
[1765809619239,0.01116507,89565.0,89561.0,0.2344756]
[1765809619445,0.03881121,89578.0,89569.0,0.01116457]
[1765809619446,0.01116345,89578.0,89569.0,0.01116457]
[1765809619647,0.2344404,89575.0,89573.0,0.11124003]
[1765809619855,0.01116382,89575.0,89573.0,0.11124003]
[1765809620060,0.01116382,89575.0,89563.0,0.01116532]
[1765809620061,0.23446155,89567.0,89563.0,0.01116532]
[1765809620271,0.01277669,89575.0,89563.0,0.01116532]
[1765809620272,0.0111637,89576.0,89572.0,0.234447]
[1765809620477,0.0111637,89576.0,89568.0,0.11124003]
[1765809620478,0.01116432,89571.0,89568.0,0.11124003]
[1765809620681,0.01116432,89571.0,89561.0,0.22342402]
[1765809620682,0.0111652,89564.0,89561.0,0.00011441]
[1765809620887,0.22330794,89563.0,89561.0,0.00011441]
[1765809621108,0.00161287,89571.0,89568.0,0.0111647]
[1765809621316,0.003,89575.0,89573.0,0.22328156]
[1765809621754,0.003,89575.0,89574.0,0.21169543]
[1765809621958,0.003,89575.0,89574.0,0.1004554]
[1765809622156,0.003,89575.0,89564.0,0.22330245]
[1765809622157,0.2233076,89563.0,89561.0,0.00011441]
[1765809622362,0.0111642,89572.0,89566.0,0.01116495]
[1765809622539,0.23444706,89573.0,89570.0,0.01116445]
[1765809622675,0.23444706,89573.0,89569.0,0.01116457]
[1765809622676,0.23444933,89572.0,89569.0,0.01116457]
[1765809622894,0.22328103,89574.0,89572.0,0.1004554]
[1765809623094,0.01116333,89579.0,89572.0,0.33490116]
[1765809623303,0.01116233,89587.0,89584.0,0.0111627]
[1765809623519,0.01116233,89587.0,89586.0,0.1004554]
[1765809623720,0.03201354,89587.0,89586.0,0.1004554]
[1765809625142,0.22328156,89573.0,89541.0,0.44671426]
[1765809625346,0.22330899,89562.0,89561.0,0.00011441]
[1765809625732,0.27404186,89562.0,89561.0,0.00011441]
[1765809626112,0.22492186,89562.0,89561.0,0.00011441]
[1765809626805,0.24288186,89562.0,89561.0,0.00011441]
[1765809627255,0.0111647,89568.0,89564.0,0.0111652]
[1765809627478,0.0111642,89572.0,89568.0,0.0111647]
[1765809627724,0.01796,89575.0,89568.0,0.0111647]
[1765809627725,0.01796,89575.0,89573.0,0.22328156]
[1765809627946,0.01116395,89574.0,89573.0,0.11124003]
[1765809628169,0.01116357,89577.0,89573.0,0.11124003]
[1765809628170,0.0111637,89576.0,89573.0,0.1224041]
[1765809628426,0.0111637,89576.0,89567.0,0.1004554]
[1765809628427,0.23439785,89592.0,89580.0,0.0111632]
[1765809628660,0.23439785,89592.0,89585.0,0.11124003]
[1765809628661,0.22324485,89588.0,89585.0,0.11124003]
[1765809628857,0.01116382,89575.0,89572.0,0.22328359]
[1765809629064,0.23443846,89576.0,89572.0,0.0111642]
[1765809629237,0.01116382,89575.0,89570.0,0.01116445]
[1765809629441,0.12631575,89591.0,89568.0,0.3018647]
[1765809629442,0.01116407,89573.0,89568.0,0.0111647]
[1765809629744,0.01116395,89574.0,89567.0,0.1004554]
[1765809629914,0.23444344,89574.0,89569.0,0.01116457]
[1765809630118,0.23443956,89576.0,89572.0,0.0111642]
[1765809630317,0.02085121,89575.0,89572.0,0.0111642]
[1765809630525,0.001,89576.0,89575.0,0.22327658]
[1765809630729,0.01796,89583.0,89573.0,0.11124003]
[1765809630953,0.22329403,89568.0,89557.0,0.22332076]
[1765809631098,0.22329154,89569.0,89564.0,0.0111652]
[1765809631293,0.22327744,89575.0,89571.0,0.01116432]
[1765809631535,0.22327744,89575.0,89568.0,0.0111647]
[1765809631536,0.0111642,89572.0,89568.0,0.0111647]
[1765809631789,0.002,89574.0,89573.0,0.05221839]
[1765809632103,0.002,89574.0,89573.0,0.36441921]
[1765809632319,0.002,89574.0,89573.0,0.34502839]
[1765809632534,0.002,89574.0,89573.0,0.00431]
[1765809632669,0.002,89574.0,89569.0,0.01116457]
[1765809633008,0.01116345,89578.0,89569.0,0.01116457]
[1765809633185,0.01116345,89578.0,89574.0,0.01116395]
[1765809633385,0.01116395,89574.0,89570.0,0.01116445]
[1765809633596,0.01116407,89573.0,89569.0,0.11124003]
[1765809633841,0.01116407,89573.0,89567.0,0.32375107]
[1765809633842,0.22329154,89569.0,89567.0,0.1004554]
[1765809634044,0.23445491,89570.0,89567.0,0.32375151]
[1765809634246,0.22329206,89569.0,89567.0,0.1004554]
[1765809634386,0.002,89578.0,89571.0,0.01116432]
[1765809634585,0.01116395,89574.0,89571.0,0.01116432]
[1765809634790,0.02085121,89576.0,89570.0,0.22328854]
[1765809634988,0.002,89578.0,89577.0,0.22327159]
[1765809635187,0.002,89578.0,89577.0,0.22715159]
[1765809635413,0.002,89578.0,89577.0,0.67911001]
[1765809635715,0.002,89578.0,89577.0,0.93941001]
[1765809635912,0.002,89578.0,89577.0,0.67911001]
[1765809636322,0.002,89578.0,89577.0,0.96881001]
[1765809636525,0.002,89578.0,89577.0,0.67911001]
[1765809636727,0.002,89578.0,89577.0,0.69707001]
[1765809636929,0.002,89578.0,89577.0,0.67894001]
[1765809637132,0.01116407,89573.0,89555.0,0.00168]
[1765809637313,0.01116407,89573.0,89549.0,0.1004554]
[1765809637314,0.22330899,89562.0,89549.0,0.1004554]
[1765809637508,0.22330899,89562.0,89551.0,0.01116682]
[1765809637705,0.22330899,89562.0,89549.0,0.1004554]
[1765809638379,0.22330899,89562.0,89554.0,0.01116644]
[1765809638506,0.22330899,89562.0,89549.0,0.21169543]
[1765809638710,0.22330899,89562.0,89549.0,0.1004554]
[1765809638908,0.0111652,89564.0,89549.0,0.1004554]
[1765809638909,0.22330886,89563.0,89549.0,0.1004554]
[1765809639161,0.02085121,89562.0,89549.0,0.1004554]
[1765809639361,0.22330886,89563.0,89553.0,0.01116657]
[1765809639683,0.02085121,89562.0,89554.0,0.01116644]
[1765809639802,0.23447176,89564.0,89557.0,0.23448703]
[1765809640006,0.23446443,89566.0,89563.0,0.1004554]
[1765809640230,0.23446665,89567.0,89564.0,0.0111652]
[1765809640562,0.23446677,89566.0,89563.0,0.1004554]
[1765809640790,0.22330247,89565.0,89563.0,0.1004554]
[1765809641328,0.23444685,89573.0,89565.0,0.01116507]
[1765809641329,0.01116407,89573.0,89565.0,0.01116507]
[1765809641555,0.002,89567.0,89566.0,0.01116495]
[1765809641719,0.002,89567.0,89566.0,0.25596551]
[1765809641918,0.01116357,89577.0,89574.0,0.23444185]
[1765809642157,0.0111637,89576.0,89572.0,0.23444639]
[1765809642370,0.01116382,89575.0,89571.0,0.01116432]
[1765809642578,0.02085121,89575.0,89573.0,0.22328108]
[1765809642801,0.002,89578.0,89575.0,0.22327373]
[1765809642952,0.002,89578.0,89577.0,0.1004554]
[1765809643760,0.02285121,89578.0,89577.0,0.1004554]
[1765809644951,0.002,89578.0,89577.0,0.1004554]
[1765809645156,0.02285121,89578.0,89577.0,0.1004554]
[1765809645559,0.02485121,89578.0,89577.0,0.1004554]
[1765809645762,0.23446596,89566.0,89564.0,0.2907]
[1765809646095,0.223304,89564.0,89557.0,0.25240737]
[1765809646309,0.223304,89564.0,89549.0,0.1004554]
[1765809646499,0.22330899,89562.0,89537.0,0.01116856]
[1765809646731,0.24267899,89562.0,89542.0,0.01116794]
[1765809646914,0.38237474,89562.0,89545.0,0.01116756]
[1765809647121,0.38237474,89562.0,89543.0,0.22335558]
[1765809647294,0.38237474,89562.0,89536.0,0.24129147]
[1765809647295,0.38237474,89562.0,89541.0,0.22336069]
[1765809647524,0.38237474,89562.0,89545.0,0.22335056]
[1765809647688,0.27108899,89562.0,89543.0,0.01116781]
[1765809647890,0.27108899,89562.0,89539.0,0.23453357]
[1765809648092,0.27108899,89562.0,89540.0,0.01116819]
[1765809648322,0.28152485,89562.0,89510.0,0.52625171]
[1765809648657,0.28152485,89562.0,89455.0,0.06309107]
[1765809648658,0.2233913,89529.0,89519.0,0.34582574]
[1765809648833,0.2233913,89529.0,89528.0,0.1008352]
[1765809649264,0.01116906,89533.0,89528.0,0.1008352]
[1765809649450,0.23455659,89531.0,89528.0,0.21275523]
[1765809649616,0.02085121,89530.0,89528.0,0.43614829]
[1765809649817,0.23455154,89533.0,89529.0,0.22338932]
[1765809650163,0.01116869,89536.0,89530.0,0.01116944]
[1765809650333,0.01116869,89536.0,89528.0,0.21275523]
[1765809650334,0.22338924,89530.0,89528.0,0.1008352]
[1765809650532,0.02085121,89529.0,89528.0,0.1008352]
[1765809651455,0.24424074,89530.0,89528.0,0.1008352]
[1765809651658,0.02085121,89529.0,89528.0,0.1008352]
[1765809652635,0.02246408,89529.0,89528.0,0.1008352]
[1765809652830,0.00161287,89529.0,89528.0,0.1008352]
[1765809653049,0.00161287,89529.0,89528.0,0.0003798]
[1765809653050,0.07024408,89529.0,89528.0,0.0003798]
[1765809653263,0.07024408,89529.0,89497.0,0.01117355]
[1765809653264,0.01117256,89505.0,89497.0,0.01117355]
[1765809653471,0.2234537,89504.0,89502.0,0.10068382]
[1765809653679,0.01117168,89512.0,89507.0,0.22344552]
[1765809653880,0.01117131,89515.0,89512.0,0.2346039]
[1765809654119,0.01117143,89514.0,89511.0,0.22343546]
[1765809654357,0.22343966,89510.0,89505.0,0.01117256]
[1765809654536,0.22345523,89504.0,89502.0,0.10068382]
[1765809654793,0.01117231,89507.0,89502.0,0.10068382]
[1765809654977,0.01117181,89511.0,89506.0,0.01117243]
[1765809655171,0.02085121,89510.0,89506.0,0.22344767]
[1765809655405,0.01117243,89506.0,89502.0,0.11185675]
[1765809655626,0.22345494,89504.0,89502.0,0.10068382]
[1765809655840,0.22345494,89504.0,89502.0,0.00011449]
[1765809655979,0.13065575,89503.0,89502.0,0.00011449]
[1765809656180,0.15906575,89503.0,89502.0,0.00111449]
[1765809656588,0.13065575,89503.0,89502.0,0.00111449]
[1765809656768,0.01937,89503.0,89502.0,0.00111449]
[1765809656994,0.22345494,89504.0,89502.0,0.00111449]
[1765809657595,0.01792,89503.0,89502.0,0.00111449]
[1765809657793,0.03877121,89503.0,89502.0,0.00111449]
[1765809658012,0.06718121,89503.0,89502.0,0.00111449]
[1765809658203,0.06718121,89503.0,89502.0,0.00011449]
[1765809658549,0.05814121,89503.0,89502.0,0.00011449]
[1765809658840,0.03877121,89503.0,89502.0,0.00011449]
[1765809659204,0.0312365,89503.0,89502.0,0.00011449]
[1765809659406,0.06718121,89503.0,89502.0,0.00011449]
[1765809659611,0.03877121,89503.0,89502.0,0.00011449]
[1765809659809,0.23462376,89505.0,89502.0,0.00011449]
[1765809659810,0.22345253,89505.0,89502.0,0.00011449]
[1765809660066,0.01117168,89512.0,89507.0,0.01117231]
[1765809660193,0.03202302,89511.0,89508.0,0.23461521]
[1765809660398,0.01117193,89510.0,89507.0,0.01117231]
[1765809660604,0.234617,89508.0,89504.0,0.01117268]
[1765809660808,0.22345546,89504.0,89502.0,0.00011449]
[1765809661038,0.04022121,89503.0,89502.0,0.00011449]
[1765809661258,0.22347367,89496.0,89473.0,0.0004]
[1765809661517,0.22347367,89496.0,89495.0,0.00035644]
[1765809661518,0.26076367,89496.0,89495.0,0.00035644]
[1765809661736,0.22352862,89474.0,89473.0,0.0004]
[1765809662004,0.22352862,89474.0,89473.0,0.00051454]
[1765809662811,0.26925862,89474.0,89473.0,0.00051454]
[1765809663033,0.38054437,89474.0,89473.0,0.00051454]
[1765809663243,0.24116862,89474.0,89473.0,0.00051454]
[1765809663443,0.26925862,89474.0,89473.0,0.00051454]
[1765809663654,0.38054437,89474.0,89473.0,0.00051454]
[1765809663866,0.02809,89487.0,89473.0,0.00051454]
[1765809664070,0.23466234,89491.0,89489.0,0.1004554]
[1765809664272,0.01117505,89485.0,89478.0,0.01117593]
[1765809664481,0.22351698,89479.0,89476.0,0.01117618]
[1765809664692,0.22351011,89482.0,89478.0,0.01117593]
[1765809664912,0.01117568,89480.0,89475.0,0.1004554]
[1765809665126,0.01117568,89480.0,89473.0,0.00051454]
[1765809665127,0.22352862,89474.0,89473.0,0.00051454]
[1765809665334,0.01117843,89458.0,89455.0,0.00783459]
[1765809665544,0.2235736,89456.0,89455.0,0.00783459]
[1765809665757,0.00161287,89458.0,89455.0,0.00783459]
[1765809665961,0.22356029,89462.0,89456.0,0.01117868]
[1765809666168,0.22356029,89462.0,89455.0,0.00783459]
[1765809666169,0.01117818,89460.0,89457.0,0.1004554]
[1765809666381,0.01217568,89480.0,89459.0,0.22356484]
[1765809666591,0.01217568,89480.0,89458.0,0.23474703]
[1765809666592,0.0111763,89475.0,89471.0,0.0111768]
[1765809666813,0.01117843,89458.0,89449.0,0.01117955]
[1765809667041,0.24442249,89457.0,89427.0,0.0111823]
[1765809667255,0.33804287,89456.0,89419.0,0.01796]
[1765809667463,0.33488184,89447.0,89412.0,0.22368217]
[1765809667677,0.33488184,89447.0,89409.0,0.1008554]
[1765809667678,0.33489934,89440.0,89409.0,0.1008554]
[1765809667910,0.22368862,89410.0,89409.0,0.0004]
[1765809668113,0.25749149,89410.0,89409.0,0.0004]
[1765809668372,0.41450724,89410.0,89409.0,0.0004]
[1765809668580,0.41450724,89410.0,89385.0,0.0004]
[1765809668581,0.22373366,89392.0,89385.0,0.0004]
[1765809668795,0.25753653,89392.0,89385.0,0.0004]
[1765809669007,0.33503443,89386.0,89385.0,0.0004]
[1765809669213,0.23492297,89391.0,89346.0,0.01796]
[1765809669214,0.01119156,89353.0,89350.0,0.00287]
[1765809669428,0.01119106,89357.0,89351.0,0.22383633]
[1765809669664,0.01119131,89355.0,89344.0,0.01119269]
[1765809669866,0.01119156,89353.0,89349.0,0.01119206]
[1765809670084,0.01119131,89355.0,89354.0,0.00427035]
[1765809670295,0.02085121,89355.0,89354.0,0.22809916]
[1765809670707,0.02085121,89358.0,89354.0,0.01546179]
[1765809670909,0.03204164,89362.0,89356.0,0.01119119]
[1765809671133,0.02085121,89363.0,89361.0,0.01119056]
[1765809671355,0.02085121,89363.0,89356.0,0.01119119]
[1765809671356,0.01119056,89361.0,89355.0,0.01119131]
[1765809671537,0.01119056,89361.0,89357.0,0.01119106]
[1765809671538,0.03204189,89360.0,89357.0,0.01119106]
[1765809671734,0.02085121,89360.0,89359.0,0.22381629]
[1765809671965,0.24465037,89366.0,89359.0,0.22381629]
[1765809672125,0.01119043,89362.0,89358.0,0.01119093]
[1765809672363,0.02085121,89361.0,89359.0,0.01119081]
[1765809672551,0.22382373,89357.0,89353.0,0.01119156]
[1765809672789,0.02085121,89356.0,89355.0,0.23501623]
[1765809672919,0.00099999,89430.0,89351.0,0.22383496]
[1765809672920,0.01118755,89385.0,89378.0,0.01118843]
[1765809673119,0.01118755,89385.0,89369.0,0.01118956]
[1765809673120,0.22378078,89374.0,89369.0,0.01118956]
[1765809673345,0.01119018,89364.0,89360.0,0.01119068]
[1765809673570,0.01119194,89350.0,89346.0,0.01119244]
[1765809673787,0.02085121,89350.0,89347.0,0.01119231]
[1765809674006,0.23501193,89358.0,89347.0,0.01119231]
[1765809674007,0.01119144,89354.0,89349.0,0.01119206]
[1765809674287,0.02085121,89353.0,89349.0,0.01119206]
[1765809674456,0.02085121,89353.0,89347.0,0.01119231]
[1765809674457,0.01119169,89352.0,89347.0,0.01119231]
[1765809674618,0.01119181,89351.0,89348.0,0.01119219]
[1765809674819,0.01119181,89351.0,89347.0,0.23503825]
[1765809674820,0.01119281,89343.0,89340.0,0.23786692]
[1765809675022,0.11128575,89361.0,89340.0,0.23786692]
[1765809675023,0.22382931,89354.0,89351.0,0.01119181]
[1765809675218,0.01119068,89360.0,89342.0,0.00242]
[1765809675219,0.01119068,89360.0,89354.0,0.01119144]
[1765809675425,0.53703037,89390.0,89340.0,0.00523]
[1765809675426,0.02809,89386.0,89370.0,0.01118943]
[1765809675684,0.02085121,89385.0,89381.0,0.01118806]
[1765809675894,0.01118743,89386.0,89361.0,0.01796]
[1765809675895,0.02085121,89387.0,89361.0,0.01796]
[1765809676024,0.0111878,89383.0,89372.0,0.2907]
[1765809676379,0.23652739,89395.0,89389.0,0.01118705]
[1765809676574,0.23652739,89395.0,89385.0,0.01118755]
[1765809676575,0.01118718,89388.0,89385.0,0.01118755]
[1765809676724,0.02085121,89387.0,89385.0,0.01118755]
[1765809676924,0.02085121,89387.0,89384.0,0.01118768]
[1765809677405,0.02085121,89387.0,89385.0,0.22375118]
[1765809677576,0.02085121,89387.0,89384.0,0.01118768]
[1765809677577,0.23492256,89392.0,89386.0,0.01118743]
[1765809677792,0.01118718,89388.0,89384.0,0.01118768]
[1765809678025,0.01118668,89392.0,89388.0,0.23493014]
[1765809678385,0.01118705,89389.0,89383.0,0.0111878]
[1765809678729,0.23492766,89390.0,89383.0,0.0111878]
[1765809678933,0.01118718,89388.0,89384.0,0.01118768]
[1765809679136,0.01118718,89388.0,89382.0,0.10072579]
[1765809679137,0.01118755,89385.0,89382.0,0.10072579]
[1765809679340,0.02085121,89385.0,89382.0,0.33567047]
[1765809679714,0.03203876,89385.0,89382.0,0.10072579]
[1765809680082,0.01118906,89373.0,89368.0,0.12242971]
[1765809680296,0.01118918,89372.0,89369.0,0.01118956]
[1765809680595,0.22381378,89360.0,89359.0,0.10072579]
[1765809680823,0.11128575,89368.0,89359.0,0.10072579]
[1765809681072,0.23497379,89372.0,89367.0,0.01118981]
[1765809681073,0.01118918,89372.0,89367.0,0.01118981]
[1765809681292,0.01119043,89362.0,89359.0,0.10072579]
[1765809681533,0.01119106,89357.0,89353.0,0.2238291]
[1765809681757,0.01119382,89335.0,89329.0,0.23508525]
[1765809681963,0.01119469,89328.0,89324.0,0.01119519]
[1765809682182,0.01119469,89328.0,89321.0,0.11192136]
[1765809682183,0.22390687,89323.0,89321.0,0.10072579]
[1765809682614,0.23510178,89324.0,89307.0,0.01119733]
[1765809682615,0.22391652,89319.0,89307.0,0.01119733]
[1765809682830,0.22391652,89319.0,89313.0,0.01119657]
[1765809683033,0.22391652,89319.0,89311.0,0.2351314]
[1765809683034,0.22391652,89319.0,89318.0,0.00545281]
[1765809683243,0.22391594,89320.0,89318.0,0.00545281]
[1765809683463,0.22391594,89320.0,89318.0,9e-05]
[1765809683464,0.02085121,89319.0,89318.0,9e-05]
[1765809683669,0.23510971,89321.0,89318.0,0.01128595]
[1765809683670,0.018,89321.0,89318.0,0.01128595]
[1765809683892,0.11128575,89343.0,89329.0,0.01119457]
[1765809684133,0.01119357,89337.0,89331.0,0.01119432]
[1765809684382,0.22391055,89322.0,89320.0,0.10072579]
[1765809684608,0.22391055,89322.0,89318.0,9e-05]
[1765809684609,0.22391401,89320.0,89318.0,0.00309]
[1765809684885,0.02085121,89319.0,89318.0,0.00309]
[1765809685067,0.01119407,89333.0,89329.0,0.23508374]
[1765809685224,0.2350676,89336.0,89335.0,0.10072579]
[1765809685425,0.2350676,89336.0,89335.0,0.10084035]
[1765809686035,0.26477047,89336.0,89335.0,0.00011456]
[1765809686238,0.37605622,89336.0,89335.0,0.00011456]
[1765809686655,0.25468047,89336.0,89335.0,0.00011456]
[1765809687232,0.57347047,89336.0,89335.0,0.00011456]
[1765809687723,0.22391652,89319.0,89295.0,0.02239767]
[1765809687921,0.24191652,89319.0,89318.0,0.00046927]
[1765809688123,0.67199227,89319.0,89318.0,0.00046927]
[1765809688332,0.01119983,89287.0,89282.0,0.23520885]
[1765809688548,0.01119983,89287.0,89284.0,0.01120021]
[1765809688549,0.00037859,89287.0,89284.0,0.01120021]
[1765809688771,0.01157842,89287.0,89280.0,0.10072579]
[1765809689226,0.22400932,89282.0,89280.0,0.10072579]
[1765809689446,0.02085121,89286.0,89264.0,0.02920272]
[1765809689447,0.22403581,89272.0,89264.0,0.22405449]
[1765809689658,0.22403943,89270.0,89261.0,0.22406009]
[1765809689874,0.02085121,89269.0,89266.0,0.01120247]
[1765809690091,0.01120197,89270.0,89269.0,0.10072579]
[1765809690301,0.22402425,89277.0,89269.0,0.10072579]
[1765809690302,0.22402959,89274.0,89270.0,0.2352414]
[1765809690514,0.22403871,89271.0,89269.0,0.10072579]
[1765809690725,0.23523742,89272.0,89269.0,0.10072579]
[1765809690939,0.23527269,89259.0,89252.0,0.01120423]
[1765809691159,0.01120222,89268.0,89263.0,0.01120285]
[1765809691423,0.01120071,89280.0,89275.0,0.01120134]
[1765809691630,0.01120109,89277.0,89273.0,0.01120159]
[1765809691855,0.22403837,89271.0,89269.0,0.001]
[1765809692075,0.23522415,89277.0,89274.0,0.01120146]
[1765809692284,0.00037859,89277.0,89269.0,0.01120209]
[1765809692487,0.00037859,89277.0,89273.0,0.01120159]
[1765809692721,0.00037859,89277.0,89274.0,0.01120146]
[1765809692928,0.00037859,89277.0,89276.0,0.2907]
[1765809693150,0.00037859,89277.0,89276.0,0.45356842]
[1765809693369,0.0111957,89320.0,89315.0,0.01119632]
[1765809693590,0.0111962,89316.0,89315.0,0.00011466]
[1765809693808,0.01119607,89317.0,89315.0,0.00011466]
[1765809694019,0.23673219,89317.0,89315.0,0.00011466]
[1765809694226,0.23673219,89317.0,89316.0,0.10072579]
[1765809694642,0.33955697,89317.0,89316.0,0.10072579]
[1765809694853,0.22827122,89317.0,89315.0,0.00111466]
[1765809695287,0.22827122,89317.0,89315.0,0.00011466]
[1765809695727,0.00161287,89317.0,89315.0,0.00011466]
[1765809696142,0.01119595,89318.0,89316.0,0.10072579]
[1765809696354,0.2559682,89318.0,89316.0,0.10072579]
[1765809696570,0.23511699,89318.0,89316.0,0.10072579]
[1765809696782,0.02085121,89317.0,89316.0,0.10072579]
[1765809697017,0.22392404,89316.0,89315.0,0.00011466]
[1765809697906,0.22553604,89317.0,89315.0,0.00011466]
[1765809698135,0.04341,89316.0,89315.0,0.00011466]
[1765809698347,0.06426121,89316.0,89315.0,0.00011466]
[1765809698554,0.16783696,89316.0,89315.0,0.00011466]
[1765809698766,0.02085121,89316.0,89315.0,0.00011466]
[1765809699034,0.22553604,89317.0,89315.0,0.00011466]
[1765809699255,0.22553604,89317.0,89316.0,0.10072579]
[1765809699921,0.01119494,89326.0,89319.0,0.01119582]
[1765809700137,0.01119582,89319.0,89316.0,0.10072579]
[1765809700310,0.31155121,89347.0,89316.0,0.10072579]
[1765809700311,0.01119557,89321.0,89316.0,0.10072579]
[1765809700570,0.22392153,89317.0,89316.0,0.10072579]
[1765809701006,0.23511236,89320.0,89316.0,0.11192199]
[1765809701211,0.22391903,89318.0,89316.0,0.10614932]
[1765809701419,0.22389687,89327.0,89321.0,0.22391078]
[1765809701617,0.22389687,89327.0,89319.0,0.01119582]
[1765809701618,0.01119507,89325.0,89319.0,0.23511058]
[1765809701859,0.22389897,89326.0,89322.0,0.01119545]
[1765809702121,0.01119532,89323.0,89321.0,0.11124003]
[1765809702342,0.01119582,89319.0,89316.0,0.10072579]
[1765809702574,0.02085121,89321.0,89319.0,0.22391597]
[1765809702832,0.01119432,89331.0,89319.0,0.22391597]
[1765809702833,0.001,89327.0,89325.0,0.22389954]
[1765809703049,0.01219482,89327.0,89324.0,0.23509827]
[1765809703265,0.002,89326.0,89325.0,0.22390014]
[1765809703701,0.001,89327.0,89325.0,0.22390014]
[1765809703702,0.001,89327.0,89326.0,0.11252003]
[1765809703918,0.001,89327.0,89326.0,0.11380003]
[1765809704165,0.001,89327.0,89326.0,0.13425292]
[1765809704391,0.23503489,89349.0,89345.0,0.23504207]
[1765809704633,0.2238343,89352.0,89348.0,0.01119219]
[1765809704634,0.01119169,89352.0,89348.0,0.01119219]
[1765809704886,2.82595845,89397.0,89328.0,0.05001839]
[1765809704887,0.01455685,89362.0,89360.0,0.01119068]
[1765809705135,0.01118956,89369.0,89365.0,0.01119006]
[1765809705385,0.01118931,89371.0,89368.0,0.01118968]
[1765809705619,0.01118931,89371.0,89354.0,0.018]
[1765809705620,0.23498851,89367.0,89363.0,0.23499522]
[1765809705850,0.01156837,89371.0,89366.0,0.01118993]
[1765809706062,0.23498501,89368.0,89366.0,0.10072579]
[1765809706282,0.22383382,89352.0,89344.0,0.11124003]
[1765809706500,0.22383382,89352.0,89330.0,0.00105]
[1765809706501,0.01119331,89339.0,89332.0,0.01119419]
[1765809706787,0.01119256,89345.0,89331.0,0.02238864]
[1765809706788,0.01119281,89343.0,89336.0,0.018]
[1765809707016,0.22385319,89345.0,89339.0,0.22386543]
[1765809707224,0.2238751,89336.0,89334.0,0.11124003]
[1765809707438,0.01119369,89336.0,89333.0,0.22388013]
[1765809707648,0.2350727,89336.0,89332.0,0.11124003]
[1765809707858,0.01119344,89338.0,89333.0,0.01130873]
[1765809708059,0.23506627,89337.0,89333.0,0.23518917]
[1765809708275,0.002,89343.0,89339.0,0.01119331]
[1765809708475,0.23504243,89346.0,89342.0,0.01119294]
[1765809708606,0.01119194,89350.0,89340.0,0.01119319]
[1765809708820,0.01119056,89361.0,89356.0,0.01119119]
[1765809709017,0.01119068,89360.0,89357.0,0.23501154]
[1765809709222,0.22379899,89366.0,89348.0,0.11124003]
[1765809709223,0.01118981,89367.0,89361.0,0.22381128]
[1765809709419,0.01118968,89368.0,89361.0,0.01119056]
[1765809709645,0.01119031,89363.0,89359.0,0.1119166]
[1765809709894,0.23499511,89364.0,89359.0,0.1119166]
[1765809710100,0.01118931,89371.0,89364.0,0.22380248]
[1765809710306,0.01118906,89373.0,89366.0,0.01118993]
[1765809710531,0.00037906,89371.0,89370.0,0.01118943]
[1765809710944,0.00037906,89371.0,89368.0,0.22379215]
[1765809710945,0.00037906,89371.0,89368.0,0.01118968]
[1765809711151,0.00037906,89371.0,89358.0,0.22381707]
[1765809711152,0.01119043,89362.0,89356.0,0.11124003]
[1765809711358,0.01119006,89365.0,89358.0,0.01119093]
[1765809711561,0.01119031,89363.0,89359.0,0.1119166]
[1765809711710,0.01119031,89363.0,89360.0,0.22381286]
[1765809711915,0.003,89368.0,89366.0,0.22379662]
[1765809712118,0.00037906,89371.0,89366.0,0.23498655]
[1765809712319,0.00037906,89371.0,89368.0,0.01118968]
[1765809712500,0.00037906,89371.0,89369.0,0.11124003]
[1765809712701,0.01119018,89364.0,89360.0,0.23500392]
[1765809712932,0.01119006,89365.0,89362.0,0.01119043]
[1765809713106,0.23498196,89369.0,89362.0,0.01119043]
[1765809713308,0.00037906,89371.0,89369.0,0.22379033]
[1765809713502,0.00037906,89371.0,89368.0,0.23498279]
[1765809713729,0.00037906,89371.0,89369.0,0.22378983]
[1765809713930,0.00037906,89371.0,89369.0,0.22379014]
[1765809714129,0.01156837,89371.0,89367.0,0.01118981]
[1765809714365,0.01156837,89371.0,89366.0,0.01118993]
[1765809714564,0.00037906,89371.0,89369.0,0.2237909]
[1765809714911,0.01156837,89371.0,89368.0,0.01218968]
[1765809715111,0.01156837,89371.0,89368.0,0.23598287]
[1765809715287,0.23535533,89371.0,89368.0,0.001]
[1765809715452,0.00037906,89371.0,89369.0,0.22379039]
[1765809715689,0.00037906,89371.0,89370.0,0.11161003]
[1765809715887,0.23498669,89367.0,89364.0,0.018]
[1765809716265,0.00161287,89367.0,89364.0,0.22380154]
[1765809716391,0.01156837,89371.0,89364.0,0.22380154]
[1765809716392,0.00037906,89371.0,89369.0,0.22378908]
[1765809716597,0.00037906,89371.0,89370.0,0.00029]
[1765809717213,0.00037906,89371.0,89370.0,0.1339089]
[1765809717426,0.01156837,89371.0,89368.0,0.01118968]
[1765809717630,0.23535503,89371.0,89368.0,0.01118968]
[1765809717824,0.00037906,89371.0,89370.0,0.00378509]
[1765809718156,0.00037906,89371.0,89370.0,0.13784399]
[1765809718360,0.00037906,89371.0,89370.0,0.41265112]
[1765809718574,0.00037906,89371.0,89370.0,0.39027225]
[1765809718924,0.00037906,89371.0,89370.0,0.22879383]
[1765809719133,0.22416529,89371.0,89370.0,0.02178509]
[1765809719550,0.22577816,89371.0,89370.0,0.00578509]
[1765809720554,0.39847391,89371.0,89370.0,0.00578509]
[1765809720694,0.39847391,89371.0,89308.0,0.02754503]
[1765809720695,0.22386639,89339.0,89338.0,0.00578]
[1765809720912,0.22386639,89339.0,89325.0,0.01119507]
[1765809720913,0.22391946,89318.0,89311.0,0.2351314]
[1765809721118,0.22391946,89318.0,89308.0,0.00578]
[1765809721119,0.01119532,89323.0,89319.0,0.01119582]
[1765809721361,0.01119532,89323.0,89317.0,0.01697607]
[1765809721655,0.01119457,89329.0,89326.0,0.01119494]
[1765809722159,0.01119331,89339.0,89332.0,0.01119419]
[1765809722162,0.12455575,89353.0,89328.0,0.00588]
[1765809722163,0.22383428,89352.0,89328.0,0.00588]
[1765809722359,0.001,89371.0,89326.0,0.00011466]
[1765809722360,0.23497886,89370.0,89367.0,0.01118981]
[1765809722574,0.23497886,89370.0,89350.0,0.2907]
[1765809722575,0.01118668,89392.0,89389.0,0.01118705]
[1765809722787,0.22373403,89392.0,89387.0,0.22374387]
[1765809722981,0.23493822,89386.0,89382.0,0.11124003]
[1765809723212,0.01118768,89384.0,89381.0,0.01118806]
[1765809723356,0.2349432,89384.0,89379.0,0.23495381]
[1765809723555,0.0111878,89383.0,89380.0,0.01118818]
[1765809723754,0.00037906,89384.0,89382.0,0.22948784]
[1765809723962,0.22376351,89381.0,89376.0,0.01118868]